Cogmind - Beta 16.1 @@@ ROGUE MODE // 2026.04.03 @ 15:44:46 Player: Ammie Result: Destroyed by H-61 Shepherd with Heavy Assault Cannon Performance ------------- Evolutions (2) 1000 Regions Visited (3) 600 Robots Destroyed (55) 275 Value Destroyed (1524) 1524 Prototype IDs (4) 80 Alien Tech Used (0) 0 Bonus (33) 33 TOTAL SCORE: 3512 Bonus ------- High Alert Combat Kills 33 Cogmind --------- Core Integrity 0/550 Matter 280/300 Energy 68/100 System Corruption 0% Temperature Cool (0) Movement Core (150) Ox2 Location -8/Materials Parts ------- > --- POWER (2) -------- (None) > --- PROPULSION (4) --- (None) > --- UTILITY (3) ------ Improved Heat Sink Improved Targeting Computer Improved Targeting Computer > --- WEAPON (2) ------- Heavy Particle Cannon > --- INVENTORY (5) ---- Improved Heat Sink Shock Rifle Heavy Particle Cannon Peak State ------------ > --- POWER ------------ Light Deuterium Engine Light Nuclear Core > --- PROPULSION ------- Improved Hover Unit Improved Hover Unit Improved Hover Unit Improved Hover Unit > --- UTILITY ---------- Improved Heat Sink Small Storage Unit Improved Targeting Computer > --- WEAPON ----------- Precision Beam Rifle Improved EM Pulse Cannon > --- INVENTORY -------- Improved Ion Engine Improved Hover Unit Improved Hover Unit Improved Targeting Computer Shock Rifle Shock Rifle Ion Cannon Advanced EMP Blaster [Rating: 30] Favorites ----------- Power Improved Ion Engine Engine Improved Ion Engine Power Core Light Nuclear Core Propulsion Improved Hover Unit Leg Aluminum Leg Hover Unit Improved Hover Unit Utility Improved Heat Sink Device Improved Heat Sink Storage Small Storage Unit Processor Improved Targeting Computer Weapon Improved EM Shotgun Energy Gun Improved EM Shotgun Energy Cannon Improved EM Pulse Cannon Ballistic Gun Assault Rifle Launcher Advanced EMP Blaster Build | -11 -10 -9 -8 ------- Run | Yrd Mat Mat Mat Slots Evolved 4 | . . 2 2 Power 1 | . . . 1 Propulsion 2 | . . 2 . Utility 1 | . . . 1 Weapon . | . . . . Parts Attached 45 | 6 13 8 18 Power 9 | 1 2 1 5 Engine 7 | 1 1 1 4 Core 2 | . 1 . 1 Reactor . | . . . . Propulsion 14 | 2 6 3 3 Treads . | . . . . Leg 6 | 2 3 . 1 Wheel . | . . . . Hover 8 | . 3 3 2 Flight . | . . . . Utility 5 | 1 1 . 3 Device 2 | . 1 . 1 Storage 1 | 1 . . . Processor 2 | . . . 2 Hackware . | . . . . Protection . | . . . . Artifact . | . . . . Weapon 17 | 2 4 4 7 Energy Gun 10 | 1 2 4 3 Energy Cannon 4 | . 1 . 3 Ballistic Gun 2 | 1 1 . . Ballistic Cannon . | . . . . Launcher 1 | . . . 1 Special Weapon . | . . . . Impact Weapon . | . . . . Slashing Weapon . | . . . . Piercing Weapon . | . . . . Special Melee Weapon . | . . . . Unidentified Prototypes 4 | . 1 . 3 Parts Lost 17 | . 2 . 15 Power 5 | . 1 . 4 Propulsion 8 | . 1 . 7 Utility 1 | . . . 1 Weapon 3 | . . . 3 Highest Loss Streak 7 | . 1 . 7 To Critical Strikes . | . . . . Average Backups 5 | . 4 6 6 Power 1 | . 1 1 . Propulsion 1 | . 1 . 1 Utility 1 | . . 2 1 Weapon 2 | . 1 2 3 Tool/Special . | . . . . Unused Backups 6 | . 1 1 4 Power . | . . . . Propulsion 1 | . 1 . . Utility 2 | . . . 2 Weapon 3 | . . 1 2 Tool/Special . | . . . . Average Slot Usage (%) 87 | . 89 96 80 Engine 9 | . 4 11 12 Core 3 | . 9 . 1 Leg 5 | . 14 . 1 Hover 23 | . 12 40 24 Device 10 | . 11 11 9 Storage 10 | . 14 11 7 Processor 3 | . . . 8 Energy Gun 11 | . 7 21 8 Energy Cannon 2 | . 3 . 4 Ballistic Gun 3 | . 10 . . Launcher 1 | . . . 2 Peak Build Rating 30 | 6 15 21 30 Average Rating 17 | 4 11 19 22 On Entrance 9 | . 6 12 21 Avg Prop Armor Cover (%) . | . . . . Naked Turns . | . . . . Heaviest Build 27 | 13 16 19 27 Greatest Support 32 | 20 20 32 32 Greatest Overweight (x) 4 | 1 2 . 4 Average Overweight (x) . | . . . . Largest Inventory Capacity 8 | 8 8 8 8 Average Capacity 7 | 6 8 8 7 Most Carried 8 | 1 7 8 8 Average Carried 5 | . 4 6 6 Final Capacity 8 | 8 8 8 5 Final Carried 8 | 1 5 8 3 Class Distribution -------------------- 94% | Mutant 5% | Scavenger-Mutant Dominant Class ---------------- Mutant | -10/Materials Mutant | -9/Materials Mutant | -8/Materials Resources | -11 -10 -9 -8 ----------- Run | Yrd Mat Mat Mat Matter Collected 870 | 225 232 144 269 Remotely . | . . . . Salvage Created 2040 | . 554 485 1001 Parts 135 | . 41 40 54 Haulers Intercepted 6 | . 1 2 3 Recyclers Shooed 1 | . 1 . . Parts Field Recycled . | . . . . Retrieved Matter . | . . . . Parts Self-Destructed . | . . . . Prevented . | . . . . Parts Restored . | . . . . Kills | -11 -10 -9 -8 ------- Run | Yrd Mat Mat Mat Combat Hostiles Destroyed 34 | . 12 8 14 Guns 25 | . 10 6 9 Cannons 3 | . . . 3 AOE 6 | . 2 2 2 Classes Destroyed 10 | . 6 2 2 Worker 4 | . 1 . 3 Builder 1 | . . 1 . Hauler 6 | . 1 2 3 Operator 3 | . 2 . 1 Watcher 7 | . 2 1 4 Swarmer 10 | . 3 3 4 Grunt 16 | . 9 1 6 Duelist 1 | . . . 1 Sentry 6 | . . 4 2 Hunter 1 | . . . 1 Best Kill Streak 7 | . 7 4 6 Combat Bots Only 4 | . 4 4 3 Max Kills in Single Turn 2 | . 2 2 2 Gunslinging . | . . . . Exploded 2 | . 2 1 1 Melee . | . . . . Uniques/NPCs Destroyed . | . . . . Combat | -11 -10 -9 -8 -------- Run | Yrd Mat Mat Mat Hostile Shots Fired 205 | . 67 13 125 Missed 57 | . 20 7 30 Hits 148 | . 47 6 95 Melee 7 | . . . 7 Projectile 141 | . 47 6 88 Critical Strikes 6 | . . . 6 Damage Taken 2347 | . 547 78 1722 Core 716 | . 116 31 569 Absorbed by Shields . | . . . . Regen/Repaired (Parts) 68 | . . 10 58 Core Remaining (%) 81 | 100 53 92 . Volleys Fired 126 | . 48 18 60 Largest 2 | . 2 2 2 Hottest 130 | . 60 100 130 Shots Fired 213 | . 72 36 105 Gun 177 | . 72 36 69 Cannon 25 | . . . 25 Launcher 11 | . . . 11 Special . | . . . . Kinetic 43 | . 43 . . Thermal 55 | . 7 . 48 Explosive . | . . . . Electromagnetic 115 | . 22 36 57 Robot Hit Streak 23 | . 10 23 18 Robot Miss Streak 5 | . 5 3 4 Penetration Max . | . . . . Secondary Targets . | . . . . Shots Hit Robots 138 | . 41 29 68 Core Hits 85 | . 29 18 38 Critical Kills . | . . . . Critical Parts Destroyed . | . . . . Critical Strikes 5 | . . . 5 Burn 4 | . . . 4 Corrupt 1 | . . . 1 Melee Attacks . | . . . . Impact . | . . . . Slashing . | . . . . Piercing . | . . . . Sneak Attacks . | . . . . Combat Hostiles . | . . . . Follow-up Attacks . | . . . . Damage Inflicted 3671 | . 776 662 2233 Guns 2005 | . 569 521 915 Cannons 444 | . . . 444 Explosions 1206 | . 195 141 870 Melee . | . . . . Ramming 16 | . 12 . 4 Kinetic 278 | . 278 . . Thermal 1000 | . 82 141 777 Explosive 164 | . 164 . . Electromagnetic 2213 | . 240 521 1452 Impact . | . . . . Slashing . | . . . . Piercing . | . . . . Highest Corruption 3 | . . 3 . Average Corruption 2 | . . 2 . Corruption Purged . | . . . . Corruption Blocked . | . . . . Overload Shots . | . . . . Overflow Damage 47 | . . 20 27 Projectiles 3 | . . . 3 Explosions 44 | . . 20 24 Melee . | . . . . Knockbacks . | . . . . Impact . | . . . . Kinetic . | . . . . Secondary . | . . . . Self-Inflicted Damage 107 | . 49 . 58 Shots 5 | . 1 . 4 Rammed 3 | . 2 . 1 Targets Rammed 5 | . 3 . 2 Kicked 2 | . 1 . 1 Crushed . | . . . . Highest Temperature 440 | . 30 13 440 Average Temperature 142 | . 15 6 168 Received Heat Transfer 834 | . 231 9 594 Effects 10 | . . . 10 Shutdowns 4 | . . . 4 Energy Bleed 2 | . . . 2 Interference 3 | . . . 3 Matter Decay 1 | . . . 1 Siege Activations . | . . . . Martial Activations . | . . . . Shielding Activations . | . . . . Robots Disrupted . | . . . . Combat Hostiles . | . . . . Robots Corrupted 2 | . . 1 1 Combat Hostiles . | . . . . Parts Fried 6 | . . 4 2 Impact Corruptions . | . . . . Robots Melted . | . . . . Combat Hostiles . | . . . . Parts Melted 1 | . . 1 . Heat Transferred 2277 | . 225 150 1902 Parts Sabotaged . | . . . . Parts Stolen . | . . . . Parts Stripped . | . . . . Power Chain Reactions 9 | . 1 3 5 Alert | -11 -10 -9 -8 ------- Run | Yrd Mat Mat Mat Maximum Alert Level 2 | . 1 1 2 Low Security (%) 67 | 100 93 94 24 Level 1 19 | . 6 5 41 Level 2 13 | . . . 34 Level 3 . | . . . . Level 4 . | . . . . Level 5 . | . . . . High Security . | . . . . Max Security . | . . . . Peak Influence 578 | . 213 234 578 Initial 94 | . . 79 94 Average 170 | . 67 84 334 Influence Increases 1709 | . 472 335 902 Destroy 0b10 Robot/C 680 | . 240 160 280 Destroy 0b10 Robot/NC 105 | . 30 20 55 Destroy Leader 186 | . 56 56 74 Successful Hack 30 | . 17 . 13 Disable Machine 150 | . 30 45 75 Anti-Garrison Action 150 | . . . 150 Destroy Structure 93 | . 24 9 60 Lose Combat Pursuer 315 | . 75 45 195 Influence Decreases 1149 | . 283 300 566 Entered New Map 240 | . . 110 130 Time Decay 739 | . 263 190 286 Lost Part 170 | . 20 . 150 Squads Dispatched 10 | . 3 1 6 Investigation 4 | . 2 . 2 Extermination . | . . . . Reinforcement 3 | . 1 1 1 Assault 2 | . . . 2 Garrison 1 | . . . 1 Intercept . | . . . . Searches Triggered . | . . . . Construction Impeded . | . . . . Haulers Reinforced . | . . . . Active Scanning Responses . | . . . . Cargo Convoy Interrupts . | . . . . Stealth | -11 -10 -9 -8 --------- Run | Yrd Mat Mat Mat Distress Signals 3 | . 1 1 1 Communications Jammed . | . . . . Distress Signals . | . . . . Times Spotted 79 | . 21 14 44 Peak Tracking Total 9 | . 3 5 9 Tactical Retreats 10 | . 3 1 6 Traps | -11 -10 -9 -8 ------- Run | Yrd Mat Mat Mat Traps Triggered 3 | . . 2 1 Indirectly . | . . . . Trap Hack Attempts . | . . . . Triggered . | . . . . Disarmed . | . . . . Reprogrammed . | . . . . Reused . | . . . . Traps Extracted . | . . . . Installed . | . . . . Triggered . | . . . . Machines | -11 -10 -9 -8 ---------- Run | Yrd Mat Mat Mat Machines Disabled 11 | . 2 3 6 Max in Single Turn 2 | . 2 2 2 Garrison Access 1 | . . . 1 Machines Repaired . | . . . . Machines Dismantled . | . . . . Machines Sabotaged . | . . . . Overloaded Fab Kills . | . . . . Hacking | -11 -10 -9 -8 --------- Run | Yrd Mat Mat Mat Machines Accessed 18 | . 5 7 6 Terminals 14 | . 5 5 4 Fabricators . | . . . . Repair Stations 2 | . . 1 1 Recycling Units . | . . . . Scanalyzers 2 | . . 1 1 Garrison Access . | . . . . Total Hacks 45 | . 13 15 17 Successful 22 | . 6 6 10 Failed 23 | . 7 9 7 Catastrophic 3 | . . 2 1 Database Lockouts . | . . . . Manual 21 | . 9 10 2 Terminals 36 | . 13 12 11 Fabricators . | . . . . Repair Stations 7 | . . 2 5 Recycling Units . | . . . . Scanalyzers 2 | . . 1 1 Garrison Access . | . . . . Terminal Hacks 9 | . 3 2 4 Record 1 | . . . 1 Locate Traps 1 | . 1 . . Dispatch Records 1 | . . 1 . Hauler Manifests 2 | . 1 . 1 Zone Layout 4 | . 1 1 2 Fabricator Hacks . | . . . . Repair Station Hacks 6 | . . 2 4 Scan Component 3 | . . 1 2 Repair 3 | . . 1 2 Recycling Unit Hacks . | . . . . Scanalyzer 2 | . . 1 1 Retrieve Study 2 | . . 1 1 Garrison Access Hacks . | . . . . Unauthorized Hacks 5 | . 3 1 1 Terminals 5 | . 3 1 1 Assimilate 5 | . 3 1 1 Fabricators . | . . . . Repair Stations . | . . . . Recycling Units . | . . . . Scanalyzers . | . . . . Garrison Access . | . . . . Data Cores Recovered 1 | . 1 . . Used . | . . . . Hacking Detections 12 | . 4 4 4 Full Trace Events 4 | . 2 1 1 Feedback Events . | . . . . Feedback Blocked . | . . . . Robot Schematics Acquired . | . . . . Robots Built . | . . . . Authchips . | . . . . Time . | . . . . Total Robot Build Rating . | . . . . Part Schematics Acquired . | . . . . Parts Built . | . . . . Authchips . | . . . . Time . | . . . . Total Part Build Rating . | . . . . Part Studies Acquired 2 | . . 1 1 Parts Repaired 3 | . . 1 2 Time 102 | . . 32 70 Parts Recycled . | . . . . Recycled Matter . | . . . . Retrieved Matter . | . . . . Retrieved Components . | . . . . Parts Scanalyzed . | . . . . Part Schematics Acquired . | . . . . Parts Damaged . | . . . . Bothacking | -11 -10 -9 -8 ------------ Run | Yrd Mat Mat Mat Used RIF Installer . | . . . . Robots Hacked . | . . . . Non-combat . | . . . . Combat . | . . . . Robot Hacks Applied . | . . . . Relay Couplers Released 1 | . . . 1 Machine Destruction 1 | . . . 1 Fabnet Peak Effective % . | . . . . Robots Rewired . | . . . . Allies Hacked . | . . . . Hacks Repelled . | . . . . Allies | -11 -10 -9 -8 -------- Run | Yrd Mat Mat Mat Total Allies . | . . . . Largest Group . | . . . . Highest-Rated Group . | . . . . Highest-Rated Ally . | . . . . Total Orders . | . . . . Ally Attacks . | . . . . Total Damage . | . . . . Kills . | . . . . Allies Corrupted . | . . . . Allies Melted . | . . . . Intel | -11 -10 -9 -8 ------- Run | Yrd Mat Mat Mat Active Infowar (turns) . | . . . . Robot Analysis Total . | . . . . Derelict Logs Recovered . | . . . . Drone Launches . | . . . . Drone Recoveries . | . . . . Exploration | -11 -10 -9 -8 ------------- Run | Yrd Mat Mat Mat Turns Passed 1635 | 44 589 382 620 Spaces Moved 1482 | 33 545 418 486 Core 42 | 8 . . 34 Treads . | . . . . Legs 271 | 25 173 . 73 Wheels . | . . . . Hover 1169 | . 372 418 379 Flight . | . . . . Fastest Speed 48 | 50 56 48 48 Average Speed 68 | 106 78 48 70 Slowest Speed 250 | 120 180 52 250 Overloaded Moves . | . . . . Propulsion Burnouts . | . . . . Robots Hopped . | . . . . Potential Cave-ins . | . . . . Cave-ins Triggered . | . . . . Exploration Rate (%) 44 | 3 77 45 54 Regions Visited 3 Branch Regions . Pre-discovered Areas . | . . . . Known Exits Taken . | . . . . Unknown Exits Taken 3 | 1 1 1 . Scrap Searched . | . . . . Spaces Dug . | . . . . Terrain Destroyed 103 | . 23 7 73 Melee . | . . . . Projectile . | . . . . AOE 103 | . 23 7 73 Terrain Rammed . | . . . . Walls Destroyed . | . . . . Machines Disabled . | . . . . Actions | -11 -10 -9 -8 --------- Run | Yrd Mat Mat Mat Total 1886 | 39 630 561 656 Wait 174 | . 5 102 67 Move 1479 | 32 544 417 486 Hop . | . . . . Pick Up 24 | 1 6 9 8 Fast Attach 16 | 6 4 2 4 Attach 14 | . 2 2 10 Detach 1 | . 1 . . Swap 25 | . 8 5 12 Drop 22 | . 9 6 7 Fire 126 | . 48 18 60 Melee . | . . . . Ram 3 | . 2 . 1 Kick 2 | . 1 . 1 Crush . | . . . . Escape Stasis . | . . . . Rewire . | . . . . Trap . | . . . . Miscellaneous . | . . . . Route ------- -11/Scrapyard -10/Materials (discovered 3 exits: *Mat x2 / [*Min]) -9/Materials (discovered 2 exits: *Mat / [*Min]) -8/Materials (discovered 1 exit: [*Fac]) History --------- Turn | Location | Event 14 | -11/Scrapyard | Discovered new exit (range 16) 45 | -11/Scrapyard | Entered Materials 274 | -10/Materials | Discovered new exit (range 15) 408 | -10/Materials | Discovered new exit (range 13) 533 | -10/Materials | Discovered new exit (range 8) 545 | -10/Materials | Derelicts attacked the area 634 | -10/Materials | Entered another Materials area 634 | -9/Materials | Evolved 2 slots: Propulsion x2 656 | -9/Materials | Build established: Mutant 680 | -9/Materials | Repaired Imp. Hover Unit 909 | -9/Materials | Discovered new exit (range 8) 977 | -9/Materials | Discovered new exit (range 15) 1016 | -9/Materials | Entered another Materials area 1016 | -8/Materials | Evolved 2 slots: Power x1, Utility x1 1194 | -8/Materials | Discovered new exit (range 16) 1295 | -8/Materials | Repaired Lgt. Deuterium Engine+ 1329 | -8/Materials | Repaired Imp. Hover Unit+ 1363 | -8/Materials | Garrison activated, responded to threat 1448 | -8/Materials | Lost 6 parts (1p4n1w) 1513 | -8/Materials | Core integrity fell below 50% 1540 | -8/Materials | Core integrity fell below 20% 1572 | -8/Materials | Lost 7 parts (3p2n1u1w) 1636 | -8/Materials | Destroyed by H-61 Shepherd with Heavy Assault Cannon Last Messages --------------- 01531_ U-05 Engineer builds a Wall. 01532_ G-50 Soldier misfires. 01535_ U-05 Engineer builds a Wall. 01535_ U-05 Engineer lays Concrete. 01536_ M-28 Smith repairs U-05 Engineer Welding Torch. 01536_ U-05 Engineer lays Concrete. 01538_ Acquired Lgt. Ion Engine. 01538_ U-05 Engineer lays Concrete. 01541_ Lgt. Ion Engine destroyed. 01576_ Kicked M-28 Smith out of the way. 01593_ M-28 Smith repairs L-31 Rogue Imp. Aluminum Leg. 01601_ Ion Cannon destroyed. 01601_ Acquired 7 matter. 01619_ U-05 Engineer lays Concrete. 01621_ K-01 Serf cleans the Terminal. 01622_ Aluminum Leg destroyed. 01622_ Knocked back. 01629_ ALERT: Hostiles spotted, dispatching reinforcements to Terminal M007. 01631_ Acquired Hvy. Particle Cannon. Map ----- +----------------------------------------------------+ | #####???????# =/%# #??? | | ????????????# """ #!% # #??? | | ????????????# """ # = + #??? | | ????????????# """ # # #??? | | ????????????##########+# #??? | | ?????????????# ! %%/ #??? | | ?????????????# # !#??? | | ?????????????# ##########??? | | ?????????????# #???????????? | | ?????????????# #???????????? | | ?????????????# #???????????? | | ?????????????# #?#########?? | | ?????????????# #?# ??? | | ?????????????####+####/#?# """??? | | ??????????????# % ## ### """""?? | | ????????????### # """""?? | | ??????? T g+ """""?? | | ??????######### # """ ?? | | ??????????????# #### # ! ? | | ??????????????## ##??# # ! # | | ???????????????# #???#l##########? | | ???????????????# #####l##????????? | | ???????????????# # #????????? | | ???????????????# # %#????????? | | ???????????????# # | #????????? | | ???????????????# # ]@#????????? | | ???????????????# + #????????? | | ???????????????# H; #????????? | | ???????????????# ########????????? | | ??????????????# ????????????????? | | ??????????????# ????????????????? | | ??????????????+ /??????????????????? | | ??????????????# ???????????????????? | | ??????????????#????????????????????? | | ???????????????????????????????????? | | ???????????????????????????????????? | | ???????????????????????????????????? | | ???????????????????????????????????? | | ???????????????????????????????????? | | ???????????????????????????????????? | | ???????????????????????????????????? | | ???????????????????????????????????? | | ???????????????????????????????????? | | ???????????????????????????????????? | | ???????????????????????????????????? | | ???????????????????????????????????? | | ???????????????????????????????????? | | ???????????????????????????????????? | | ???????????????????????????????????? | | ???????????????????????????????????? | +----------------------------------------------------+ Best States ------------- Heat Dissipation 45 Energy Generation 24 Energy Capacity 430 Matter Stores 300 Matter Capacity 300 Sight Range 16 Terrain Scan Density 10 Evasion (%) 55 Targeting Accuracy 6 Item Schematics ----------------- None Robot Schematics ------------------ None Fabricated ------------ Nothing Repaired ---------- Imp. Hover Unit | 71% | -9/Materials Lgt. Deuterium Engine | 22% | -8/Materials Imp. Hover Unit | 45% | -8/Materials Studied --------- Imp. Hover Unit | -9/Materials | Hacked Lgt. Deuterium Engine | -8/Materials | Hacked Alien Tech Used ----------------- None Achievements -------------- None Challenges ------------ None Game ------ Seed GrapheneDimensionalPower Manual? 0 Play Time 00:30:24 Cumulative 33.5 hours Start 2026.04.03 @ 15:17:08 End 2026.04.03 @ 15:44:46 Sessions 1 Manual Loads 0 Difficulty Rogue Special Mode None Game No. 59 Rogue 59 Adventurer 0 Explorer 0 Win Type - Total 0 Types 0/0/0/0/0/0/0/0/0/0 Lore% 9 Gallery% 22 Achievement% 19 Wizard Run 0 Options --------- Layout 0 ASCII 0 Keyboard 0 Movement Mouse Keybinds 0 Fullscreen 1 Font 24/Smallcaps Map View 38x25 Zoom Use 100% Tactical HUD 1 Map Filters NONE Filters NONE Steam 1 RUN: 99aa03bf-713a-4153-9ab9-a11b18200506